fUST/lending_fUST_20240811
["ID","MTS","AMOUNT","RATE_DAILY","PERIOD"]
[334599567,1723308556100,-153.86783324,0.00018407,2]
[334599568,1723308556123,-157.336034,0.00018414,2]
[334599569,1723308556145,-157.336034,0.00018421,2]
[334599570,1723308556171,-157.336034,0.00018428,2]
[334599571,1723308556192,-157.336034,0.00018435,2]
[334599572,1723308556212,-157.336034,0.00018442,2]
[334599573,1723308556232,-157.336034,0.00018449,2]
[334599574,1723308556253,-157.336034,0.00018456,2]
[334599575,1723308556274,-157.336034,0.00018463,2]
[334599576,1723308556295,-157.336034,0.0001847,2]
[334599577,1723308556316,-157.336034,0.00018478,2]
[334599578,1723308556337,-157.336034,0.00018485,2]
[334599579,1723308556359,-99.30569663,0.00018492,2]
[334599622,1723308632083,-58.03033737,0.00018492,2]
[334599624,1723308632093,-157.336034,0.00018499,2]
[334599626,1723308632102,-167.610555,0.00018527,2]
[334599628,1723308632112,-167.610555,0.00018716,2]
[334599631,1723308632123,-500.0,0.00018904,2]
[334599632,1723308632132,-19.12752454,0.00018906,2]
[334599635,1723308632149,-148.48303046,0.00018906,2]
[334599637,1723308632159,-306.0,0.00019041,2]
[334599639,1723308632169,-306.0,0.00019041,2]
[334599641,1723308632179,-167.610555,0.00019095,2]
[334599642,1723308632189,-153.0,0.00019134,2]
[334599643,1723308632198,-153.0,0.00019134,2]
[334599644,1723308632212,-198.33752254,0.00019155,2]
[334599645,1723308632221,-153.0,0.00019441,2]
[334599646,1723308632231,-243.71013631,0.00019451,2]
[334599647,1723308632242,-414.04675619,0.00019547,2]
[334599648,1723308632253,-266.8119925,0.0001958,2]
[334599649,1723308632266,-33.1880075,0.0001958,2]
[334599650,1723308632278,-2232.25302332,0.00019581,2]
[334599689,1723308638193,-345.13794404,0.00019581,2]
[334599786,1723308641783,-5198.83121852,0.00019581,2]
[334599787,1723308641792,-153.0,0.00019667,2]
[334599788,1723308641802,-153.0,0.00019667,2]
[334599789,1723308641812,-153.0,0.00019667,2]
[334599790,1723308641822,-153.0,0.00019667,2]
[334599791,1723308641831,-153.0,0.00019667,2]
[334599792,1723308641841,-153.0,0.00019667,2]
[334599793,1723308641851,-153.0,0.00019667,2]
[334599794,1723308641860,-153.0,0.00019667,2]
[334599795,1723308641869,-153.0,0.00019667,2]
[334599796,1723308641879,-153.0,0.00019667,2]
[334599797,1723308641888,-153.0,0.00019667,2]
[334599798,1723308641897,-153.0,0.00019667,2]
[334599799,1723308641907,-153.0,0.00019667,2]
[334599800,1723308641916,-3714.30326391,0.00019824,2]
[334599801,1723308641925,-193.093511,0.00019886,2]
[334599802,1723308641935,-2993.33781285,0.00019999,2]
[334599803,1723308641944,-150.01,0.00019999,2]
[334599804,1723308641954,-150.112233,0.0002,2]
[334599805,1723308641965,-156.4788062,0.0002,2]
[334599806,1723308641975,-1000.0,0.0002,20]
[334599807,1723308641986,-225.1960746,0.0002,2]
[334599808,1723308641999,-427.3467713,0.0002,2]
[334599809,1723308642010,-404.94250281,0.0002,2]
[334599810,1723308642020,-1444.82566449,0.0002,2]
[334599811,1723308642030,-1302.72508254,0.00020123,2]
[334599812,1723308642041,-853.838524,0.0002014,2]
[334599813,1723308642053,-629.703852,0.0002014,2]
[334599814,1723308642064,-507.936467,0.0002014,2]
[334599815,1723308642078,-594.656108,0.0002014,2]
[334599816,1723308642089,-683.07082,0.0002014,2]
[334599817,1723308642110,-441.292156,0.0002014,2]
[334599818,1723308642122,-178.835217,0.00020223,2]
[334599819,1723308642132,-620.00000003,0.00020238,2]
[334599820,1723308642143,-150.0,0.0002027,2]
[334599821,1723308642153,-507.0,0.0002027,2]
[334599822,1723308642163,-1412.0,0.0002027,2]
[334599823,1723308642175,-253.322,0.0002027,2]
[334599824,1723308642185,-1418.22505249,0.00020289,2]
[334599825,1723308642195,-1418.22505245,0.00020339,2]
[334599826,1723308642204,-150.0,0.00020373,2]
[334599827,1723308642215,-159.88,0.00020377,2]
[334599828,1723308642225,-47585.46464417,0.00020377,2]
[334599829,1723308642235,-1418.22505245,0.00020388,2]
[334599830,1723308642245,-853.838524,0.00020389,2]
[334599831,1723308642255,-629.703852,0.00020389,2]
[334599832,1723308642265,-507.936467,0.00020389,2]
[334599833,1723308642274,-594.656108,0.00020389,2]
[334599834,1723308642284,-683.07082,0.00020389,2]
[334599835,1723308642295,-441.292156,0.00020389,2]
[334599836,1723308642304,-193.093508,0.00020389,2]
[334599837,1723308642315,-160.0,0.00020397,3]
[334599838,1723308642326,-1418.22505245,0.00020438,2]
[334599839,1723308642336,-1959.02576919,0.00020477,2]
[334599840,1723308642348,-1418.22505245,0.00020487,2]
[334599841,1723308642359,-3205.46971616,0.00020488,2]
[334599842,1723308642370,-249.59384781,0.00020489,2]
[334599843,1723308642381,-62805.7827424,0.0002049,2]
[334599844,1723308642391,-2760.26493365,0.000205,2]
[334599845,1723308642402,-500.0,0.00020547,7]
[334599846,1723308642413,-500.0,0.00020547,7]
[334599848,1723308642423,-500.0,0.00020547,7]
[334599850,1723308642433,-500.0,0.00020547,7]
[334599852,1723308642444,-400.0,0.00020547,7]
[334599854,1723308642453,-178.835217,0.00020555,2]
[334599855,1723308642465,-200.0,0.00020573,2]
[334599856,1723308642481,-200.0,0.00020573,2]
[334599857,1723308642490,-200.0,0.00020573,2]
[334599858,1723308642499,-62805.7827424,0.00020577,2]
[334599859,1723308642509,-151.0,0.00020579,2]
[334599860,1723308642519,-151.0,0.00020579,2]
[334599861,1723308642528,-151.0,0.00020579,2]
[334599862,1723308642536,-151.0,0.00020579,2]
[334599863,1723308642546,-151.0,0.00020579,2]
[334599864,1723308642555,-200.431721,0.00020579,2]
[334599865,1723308642564,-200.431721,0.00020579,2]
[334599866,1723308642573,-151.0,0.00020579,2]
[334599867,1723308642583,-151.0,0.00020579,2]
[334599869,1723308642592,-151.0,0.00020579,2]
[334599871,1723308642602,-151.0,0.00020579,2]
[334599873,1723308642610,-260.875624,0.00020579,2]
[334599875,1723308642620,-151.0,0.00020579,2]
[334599877,1723308642630,-62805.7827424,0.00020579,2]
[334599880,1723308642640,-22613.18787681,0.00020587,11]
[334599883,1723308642649,-52058.7335797,0.00020587,2]
[334599885,1723308642659,-151.0,0.00020587,2]
[334599887,1723308642669,-151.0,0.00020587,2]
[334599889,1723308642678,-151.0,0.00020587,2]
[334599890,1723308642687,-500.0,0.00020589,2]
[334599891,1723308642697,-193.84114416,0.00020589,2]
[334599893,1723308642708,-500.0,0.00020589,2]
[334599898,1723308642925,-500.0,0.00020589,2]
[334599900,1723308642936,-329.77549913,0.00020589,2]
[334599902,1723308642946,-500.0,0.00020589,2]
[334599903,1723308642960,-319.52279965,0.00020589,2]
[334599905,1723308642970,-500.0,0.00020589,2]
[334599907,1723308642980,-500.0,0.00020589,2]
[334599908,1723308642990,-500.0,0.00020589,2]
[334599910,1723308643005,-500.0,0.00020589,2]
[334599912,1723308643016,-500.0,0.00020589,2]
[334599914,1723308643027,-500.0,0.00020589,2]
[334599916,1723308643039,-500.0,0.00020589,2]
[334599918,1723308643049,-500.0,0.00020589,2]
[334599919,1723308643061,-500.0,0.00020589,2]
[334599921,1723308643072,-500.0,0.00020589,2]
[334599923,1723308643083,-500.0,0.00020589,2]
[334599924,1723308643094,-500.0,0.00020589,2]
[334599925,1723308643103,-500.0,0.00020589,2]
[334599926,1723308643112,-500.0,0.00020589,2]
[334599927,1723308643122,-500.0,0.00020589,2]
[334599928,1723308643131,-578.74945778,0.00020589,2]
[334599929,1723308643140,-500.0,0.00020589,2]
[334599930,1723308643150,-500.0,0.00020589,2]
[334599931,1723308643160,-500.0,0.00020589,2]
[334599933,1723308643169,-500.0,0.00020589,2]
[334599935,1723308643178,-500.0,0.00020589,2]
[334599937,1723308643188,-500.0,0.00020589,2]
[334599939,1723308643197,-500.0,0.00020589,2]
[334599940,1723308643206,-578.74945778,0.00020589,2]
[334599941,1723308643217,-500.0,0.00020589,2]
[334599942,1723308643227,-500.0,0.00020589,2]
[334599943,1723308643237,-500.0,0.00020589,2]
[334599944,1723308643247,-500.0,0.00020589,2]
[334599946,1723308643255,-500.0,0.00020589,2]
[334599948,1723308643265,-171.25054222,0.00020589,2]
[334599949,1723308643274,-500.0,0.00020589,2]
[334599950,1723308643284,-400.0,0.00020589,2]
[334599951,1723308643294,-201.22405699,0.00020589,2]
[334599952,1723308643303,-600.0,0.00020589,2]
[334599953,1723308643313,-151.0,0.00020589,2]
[334599954,1723308643323,-280.346872,0.00020589,2]
[334599955,1723308643332,-151.0,0.00020589,2]
[334599956,1723308643342,-151.0,0.00020589,2]
[334599957,1723308643352,-200.431721,0.00020589,2]
[334599958,1723308643361,-200.431721,0.00020589,2]
[334599959,1723308643371,-151.0,0.00020589,2]
[334599960,1723308643380,-237.784962,0.00020589,2]
[334599961,1723308643391,-151.0,0.00020589,2]
[334599962,1723308643401,-151.0,0.00020589,2]
[334599963,1723308643413,-151.0,0.0002059,2]
[334599964,1723308643422,-237.693936,0.0002059,2]
[334599965,1723308643432,-237.693936,0.0002059,2]
[334599966,1723308643441,-151.0,0.0002059,2]
[334599967,1723308643450,-151.0,0.0002059,2]
[334599968,1723308643459,-151.0,0.0002059,2]
[334599969,1723308643469,-151.0,0.0002059,2]
[334599970,1723308643479,-151.0,0.0002059,2]
[334599971,1723308643488,-151.0,0.0002059,2]
[334599972,1723308643498,-151.0,0.0002059,2]
[334599973,1723308643507,-200.431721,0.0002059,2]
[334599974,1723308643517,-200.431721,0.0002059,2]
[334599975,1723308643526,-151.0,0.0002059,2]
[334599976,1723308643537,-125611.565485,0.0002059,2]
[334599977,1723308643546,-151.0,0.0002059,2]
[334599978,1723308643555,-151.0,0.0002059,2]
[334599979,1723308643565,-85628.64082042,0.000206,2]
[334600084,1723308646200,-989.90003636,0.00019547,2]
[334600085,1723308646211,-190.90673918,0.00019999,2]
[334600086,1723308646223,-2258.17328029,0.00019999,2]
[334600087,1723308646283,-114.66626869,0.00019999,2]
[334600088,1723308646302,-620.49826387,0.00019999,2]
[334600089,1723308646312,-11720.16985736,0.000206,2]
[334600099,1723308741479,167.110197,0.00014247,2]
[334600100,1723308814705,676.89516445,0.00014247,2]
[334600152,1723309312146,226.485569,0.00014247,2]
[334600159,1723309631494,267.84711756,9.9e-05,2]
[334600160,1723309636129,-181.17596528,0.0001611,2]
[334600161,1723309636163,-500.0,0.00018904,2]
[334600162,1723309636200,-181.577631,0.00018947,2]
[334600163,1723309636230,-1261.4650524,0.00019042,2]
[334600164,1723309636261,-303.43978548,0.00019755,2]
[334600165,1723309639259,-410.49618781,0.00019755,2]
[334600166,1723309651148,-989.90003636,0.00019547,2]
[334600167,1723309651171,-659.70078634,0.00019755,2]
[334600188,1723309762635,167.021884,0.00014247,2]
[334600210,1723309832207,-417.58520774,0.00018905,2]
[334600213,1723309832218,-181.577631,0.00019005,2]
[334600215,1723309832228,-287.38831,0.00019451,2]
[334600217,1723309832238,-364.91390372,0.00019755,2]
[334600295,1723309838951,-287.38831,0.00019886,2]
[334600296,1723309838978,-366.99479238,0.00019886,2]
[334600318,1723309840392,-208.87549862,0.00019886,2]
[334600319,1723309840402,-1011.699091,0.00019886,2]
[334600320,1723309840413,-164.789857,0.00019886,2]
[334600321,1723309840423,-63029.3754,0.0002,7]
[334600322,1723309840432,-427.3467713,0.0002,2]
[334600323,1723309840442,-863.258601,0.00020135,2]
[334600324,1723309840453,-1011.699091,0.00020135,2]
[334600325,1723309840463,-620.00527069,0.00020187,2]
[334600326,1723309840473,-214.009,0.0002027,2]
[334600327,1723309840483,-1412.0,0.00020306,2]
[334600328,1723309840492,-150.0,0.0002033,2]
[334600329,1723309840502,-150.0,0.0002033,2]
[334600331,1723309840512,-507.0,0.0002033,2]
[334600332,1723309840522,-863.258601,0.00020383,2]
[334600333,1723309840531,-1011.699091,0.00020383,2]
[334600334,1723309840541,-500.0,0.00020466,2]
[334600335,1723309840551,-5752.44653289,0.000205,2]
[334600336,1723309840561,-502.3953059,0.000205,2]
[334600337,1723309840570,-2484.23844024,0.000205,2]
[334600338,1723309840580,-200.0,0.00020573,2]
[334600339,1723309840589,-200.0,0.00020573,2]
[334600340,1723309840599,-200.0,0.00020573,2]
[334600341,1723309840608,-749.42,0.0002058,3]
[334600342,1723309840618,-218.76357699,0.00020589,2]
[334600343,1723309840628,-372.17520616,0.00020589,2]
[334600344,1723309840638,-424.89001675,0.00020589,2]
[334600345,1723309840647,-500.0,0.00020589,2]
[334600346,1723309840657,-500.0,0.00020589,2]
[334600347,1723309840667,-500.0,0.00020589,2]
[334600348,1723309840677,-500.0,0.00020589,2]
[334600349,1723309840686,-500.0,0.00020589,2]
[334600350,1723309840696,-500.0,0.00020589,2]
[334600351,1723309840706,-500.0,0.00020589,2]
[334600352,1723309840715,-500.0,0.00020589,2]
[334600353,1723309840725,-431.49978311,0.00020589,2]
[334600354,1723309840736,-500.0,0.00020589,2]
[334600355,1723309840747,-500.0,0.00020589,2]
[334600356,1723309840758,-500.0,0.00020589,2]
[334600357,1723309840768,-500.0,0.00020589,2]
[334600358,1723309840777,-500.0,0.00020589,2]
[334600359,1723309840788,-500.0,0.00020589,2]
[334600360,1723309840797,-500.0,0.00020589,2]
[334600361,1723309840807,-500.0,0.00020589,2]
[334600362,1723309840817,-400.0,0.00020589,2]
[334600363,1723309840826,-500.0,0.00020589,2]
[334600364,1723309840836,-500.0,0.00020589,2]
[334600365,1723309840846,-500.0,0.00020589,2]
[334600366,1723309840855,-167.30636181,0.00020589,2]
[334600367,1723309840865,-61612.4154819,0.0002059,2]
[334600368,1723309840875,-11306.59393841,0.0002059,11]
[334600369,1723309840884,-52807.76657786,0.0002059,2]
[334600396,1723309846465,-16.2670963,0.0002059,2]
[334600397,1723309846479,-163741.18504524,0.0002059,2]
[334600401,1723309870190,152.02556704,0.00017269,2]
[334600402,1723309870213,249.76042256,0.00017269,2]
[334600403,1723309870233,2841.63012526,0.00017269,2]
[334600404,1723309878290,61.93942287,0.00017269,2]
[334600405,1723309878310,156.36305426,0.00017269,2]
[334600410,1723310251289,177.935549,0.00014247,2]
[334600411,1723310308621,737.91305455,0.00014247,2]
[334600412,1723310319639,737.91305455,0.00014247,2]
[334600413,1723310327904,154.76012181,0.00015954,2]
[334600414,1723310383381,328.61668616,0.00015954,2]
[334600416,1723310434691,409.95169697,0.00015954,2]
[334600418,1723310540730,213.58483412,0.00015954,2]
[334600419,1723310554658,213.58483412,0.00015954,2]
[334600422,1723310667639,213.58483412,0.00015954,2]
[334600427,1723310774661,213.58483412,0.00015954,2]
[334600428,1723310782920,317.46167339,0.00015954,2]
[334600429,1723310789652,213.58483412,0.00015954,2]
[334600430,1723310833937,154.79102903,0.00015954,2]
[334600431,1723310848145,-206.71831374,0.00018033,2]
[334600433,1723310851139,-53.22541326,0.00018033,2]
[334600434,1723310851162,-3186.36218882,0.00018137,2]
[334600437,1723310893357,5099.66663452,0.00013,2]
[334600438,1723310902418,780.14345961,0.000125,2]
[334600448,1723310948119,-213.58483412,0.00018137,2]
[334600449,1723310948148,-11428.1703183,0.00018137,2]
[334600456,1723311023479,166.943823,0.00014247,2]
[334600603,1723311038545,-213.58483412,0.00018137,2]
[334600605,1723311038555,-10285.46749288,0.00018137,2]
[334600606,1723311038565,-32024.68742948,0.00018696,2]
[334600608,1723311038574,-1139.88444724,0.00018804,2]
[334600610,1723311038584,-500.0,0.00018904,2]
[334600611,1723311038593,-522.71848665,0.00018989,2]
[334600612,1723311038603,-416.38933481,0.00019155,2]
[334600613,1723311038612,-158.2734259,0.00019167,2]
[334600614,1723311038622,-259.01924299,0.00019167,2]
[334600615,1723311038631,-159.554137,0.00019178,2]
[334600616,1723311038641,-500.0,0.00019233,2]
[334600617,1723311038650,-579.8,0.00019615,2]
[334600618,1723311038659,-153.0,0.0001972,2]
[334600619,1723311038670,-153.0,0.0001972,2]
[334600621,1723311038680,-579.8,0.00019749,2]
[334600623,1723311038689,-579.8,0.00019884,2]
[334600625,1723311038699,-202.339818,0.00019886,2]
[334600626,1723311038709,-202.339818,0.00019886,2]
[334600627,1723311038719,-172.651721,0.00019886,2]
[334600629,1723311038729,-172.65172,0.00019886,2]
[334600631,1723311038740,-267.387867,0.00019886,2]
[334600633,1723311038752,-457.885204,0.00019886,2]
[334600635,1723311038761,-164.789857,0.00019886,2]
[334600637,1723311038770,-39941.62247351,0.0001999,2]
[334600639,1723311038780,-749.42,0.0001999,3]
[334600640,1723311038790,-500.0,0.00019999,2]
[334600641,1723311038801,-376.27538166,0.00019999,2]
[334600642,1723311038811,-500.0,0.00019999,2]
[334600643,1723311038822,-500.0,0.00019999,2]
[334600644,1723311038834,-500.0,0.00019999,2]
[334600645,1723311039021,-254.35379999,0.00019999,2]
[334600646,1723311039032,-2602.22864022,0.0002,2]
[334600647,1723311039042,-217.43017686,0.0002,2]
[334600648,1723311039051,-294.33166663,0.0002,2]
[334600649,1723311039061,-346.25605686,0.0002,2]
[334600650,1723311039071,-1444.82566449,0.0002,2]
[334600651,1723311039082,-156.4788062,0.0002,2]
[334600652,1723311039092,-155.12812963,0.0002,2]
[334600653,1723311039103,-24271.73575449,0.0002,2]
[334600654,1723311039112,-579.8,0.00020018,2]
[334600655,1723311039122,-379.055208,0.00020118,2]
[334600656,1723311039131,-202.339818,0.00020135,2]
[334600657,1723311039142,-202.339818,0.00020135,2]
[334600658,1723311039152,-172.651721,0.00020135,2]
[334600659,1723311039161,-172.65172,0.00020135,2]
[334600660,1723311039170,-267.387867,0.00020135,2]
[334600661,1723311039180,-457.885204,0.00020135,2]
[334600662,1723311039189,-579.8,0.00020153,2]
[334600663,1723311039198,-379.05520796,0.00020213,2]
[334600664,1723311039208,-600.0,0.00020218,2]
[334600665,1723311039219,-579.8,0.00020287,2]
[334600666,1723311039229,-379.05520796,0.00020309,2]
[334600667,1723311039240,-4313.40610531,0.00020377,2]
[334600668,1723311039253,-164.789857,0.00020383,2]
[334600669,1723311039264,-202.339818,0.00020383,2]
[334600670,1723311039274,-202.339818,0.00020383,2]
[334600671,1723311039283,-172.651721,0.00020383,2]
[334600672,1723311039292,-172.65172,0.00020383,2]
[334600673,1723311039303,-267.387867,0.00020383,2]
[334600674,1723311039314,-457.885204,0.00020383,2]
[334600675,1723311039324,-150.0,0.0002039,2]
[334600676,1723311039335,-507.0,0.0002039,2]
[334600677,1723311039345,-1412.0,0.0002039,2]
[334600678,1723311039357,-379.05520796,0.00020404,2]
[334600679,1723311039367,-579.8,0.00020422,2]
[334600680,1723311039377,-4554.05171131,0.00020454,2]
[334600681,1723311039386,-160.0,0.0002047,3]
[334600682,1723311039396,-2000.0,0.0002049,2]
[334600683,1723311039406,-379.05520796,0.00020499,2]
[334600684,1723311039417,-3020.74219152,0.000205,2]
[334600685,1723311039426,-579.8,0.00020557,2]
[334600686,1723311039436,-200.0,0.00020573,2]
[334600687,1723311039445,-200.0,0.00020573,2]
[334600688,1723311039455,-200.0,0.00020573,2]
[334600689,1723311039465,-64448.6591978,0.00020579,2]
[334600690,1723311039475,-500.0,0.00020589,2]
[334600691,1723311039485,-325.51924247,0.00020589,2]
[334600692,1723311039497,-200.74652231,0.00020589,2]
[334600693,1723311039506,-569.77142982,0.00020589,2]
[334600694,1723311039515,-500.0,0.00020589,2]
[334600695,1723311039524,-500.0,0.00020589,2]
[334600696,1723311039534,-500.0,0.00020589,2]
[334600697,1723311039543,-500.0,0.00020589,2]
[334600698,1723311039552,-500.0,0.00020589,2]
[334600699,1723311039561,-500.0,0.00020589,2]
[334600700,1723311039571,-500.0,0.00020589,2]
[334600701,1723311039581,-500.0,0.00020589,2]
[334600702,1723311039590,-500.0,0.00020589,2]
[334600703,1723311039599,-500.0,0.00020589,2]
[334600704,1723311039608,-500.0,0.00020589,2]
[334600705,1723311039618,-500.0,0.00020589,2]
[334600706,1723311039628,-640.48259057,0.00020589,2]
[334600707,1723311039638,-500.0,0.00020589,2]
[334600708,1723311039648,-500.0,0.00020589,2]
[334600709,1723311039658,-500.0,0.00020589,2]
[334600710,1723311039668,-500.0,0.00020589,2]
[334600711,1723311039677,-500.0,0.00020589,2]
[334600712,1723311039687,-500.0,0.00020589,2]
[334600713,1723311039696,-500.0,0.00020589,2]
[334600714,1723311039705,-500.0,0.00020589,2]
[334600715,1723311039715,-500.0,0.00020589,2]
[334600716,1723311039723,-500.0,0.00020589,2]
[334600717,1723311039732,-500.0,0.00020589,2]
[334600718,1723311039742,-335.2527449,0.00020589,2]
[334600719,1723311039757,-500.0,0.00020589,2]
[334600720,1723311039766,-500.0,0.00020589,2]
[334600721,1723311039775,-500.0,0.00020589,2]
[334600722,1723311039784,-250.0,0.00020589,2]
[334600723,1723311039794,-2000.0,0.00020589,2]
[334600724,1723311039803,-1176.96531835,0.00020589,2]
[334600725,1723311039812,-11306.59393841,0.0002059,11]
[334600726,1723311039821,-16261.30231753,0.0002059,11]
[334600727,1723311039833,-109429.319654,0.0002059,2]
[334600728,1723311039847,-265.00443593,0.0002059,2]
[334600729,1723311039858,-2192.8348026,0.0002059,2]
[334600730,1723311039870,-10548.29242967,0.0002059,2]
[334600772,1723311042919,-1956.7198556,0.00018945,2]
[334600774,1723311042932,-1492.76568398,0.00018945,2]
[334600776,1723311042942,-592.11646109,0.00018969,2]
[334600778,1723311042951,-221.2,0.00019507,2]
[334600780,1723311042961,-67448.69744883,0.0002059,2]
[334600784,1723311042987,-67910.48801997,0.0002059,2]
[334600786,1723311042996,-2993.33781285,0.00020599,2]
[334600787,1723311043007,-150.01,0.00020599,2]
[334600788,1723311043017,-31022.26596764,0.000206,2]
[334600790,1723311043027,-8032.56183631,0.000206,2]
[334600791,1723311043036,-109366.26385786,0.000206,2]
[334600799,1723311043386,-620.4272505,0.000206,2]
[334600800,1723311043510,-3754.5,0.000206,2]
[334600832,1723311046546,-213.58483412,0.00018137,2]
[334600833,1723311046556,-136504.3135823,0.000206,2]
[334600834,1723311046636,-371.82967801,0.000206,2]
[334600835,1723311046687,-56881.68997805,0.000206,2]
[334600836,1723311059989,320.35358781,0.00017269,2]
[334600837,1723311062044,845.87870421,0.00017269,2]
[334600838,1723311064650,342.52439147,0.00017269,2]
[334600839,1723311065830,810.33208659,0.00017269,2]
[334600840,1723311067177,471.04982511,0.00017269,2]
[334600841,1723311067687,41.71758181,0.00017269,2]
[334600874,1723311481218,989.90003636,0.00015954,2]
[334600875,1723311502132,154.9150861,0.00015954,2]
[334600876,1723311503793,175.358413,0.00014247,2]
[334600880,1723311517794,1091.69139402,0.00015954,2]
[334600881,1723311534722,542.48310742,0.00015954,2]
[334600882,1723311546209,664.5582695,0.00015954,2]
[334600883,1723311547144,309.44302186,0.00015954,2]
[334600891,1723311554804,280.51515585,0.00015954,2]
[334600892,1723311559660,308.46564316,0.00015954,2]
[334600893,1723311588702,213.58483412,0.00015954,2]
[334600895,1723311698712,291.47565658,0.00015954,2]
[334600897,1723312052132,-118.51669007,0.00017269,2]
[334600898,1723312052154,-1363.91466198,0.00018,2]
[334600899,1723312052176,-259.943727,0.00018147,2]
[334600900,1723312052198,-1946.7198556,0.00018219,2]
[334600901,1723312052218,-300.0,0.00018343,2]
[334600902,1723312052238,-624.93849684,0.00018344,2]
[334600903,1723312066856,166.969286,0.00014247,2]
[334600904,1723312088876,780.24037496,0.00015954,2]
[334600942,1723312238933,-6189.38227716,0.00018344,2]
[334600943,1723312238942,-165.611509,0.00018661,2]
[334600944,1723312238957,-165.611509,0.0001867,2]
[334600945,1723312238968,-165.611509,0.00018678,2]
[334600946,1723312238978,-165.611509,0.00018687,2]
[334600947,1723312238988,-165.611509,0.00018695,2]
[334600948,1723312238998,-165.611509,0.00018704,2]
[334600949,1723312239008,-165.611509,0.00018712,2]
[334600950,1723312239018,-165.611509,0.00018721,2]
[334600951,1723312239027,-165.611509,0.00018729,2]
[334600952,1723312239037,-165.611509,0.00018738,2]
[334600953,1723312239047,-165.611509,0.00018746,2]
[334600954,1723312239057,-165.611509,0.00018755,2]
[334600955,1723312239067,-500.0,0.00018904,2]
[334600956,1723312239077,-910.10003344,0.00019102,2]
[334600957,1723312239086,-186.71494926,0.00019153,2]
[334600958,1723312239096,-170.26354811,0.00019477,2]
[334600959,1723312239106,-434.9,0.00019648,2]
[334600960,1723312239117,-153.0,0.00019733,2]
[334600961,1723312239127,-153.0,0.00019733,2]
[334600962,1723312239139,-153.0,0.00019733,2]
[334600963,1723312239149,-153.0,0.00019733,2]
[334600964,1723312239159,-153.0,0.00019733,2]
[334600965,1723312239170,-153.0,0.00019733,2]
[334600966,1723312239179,-153.0,0.00019733,2]
[334600967,1723312239189,-153.0,0.00019733,2]
[334600968,1723312239201,-153.0,0.00019733,2]
[334600969,1723312239214,-153.0,0.00019733,2]
[334600970,1723312239224,-153.0,0.00019733,2]
[334600971,1723312239234,-153.0,0.00019733,2]
[334600972,1723312239245,-153.0,0.00019733,2]
[334600973,1723312239255,-153.0,0.00019733,2]
[334600974,1723312239265,-153.0,0.00019733,2]
[334600975,1723312239274,-153.0,0.00019733,2]
[334600976,1723312239284,-126.91785978,0.00019733,2]
[334601010,1723312240839,-26.08214022,0.00019733,2]
[334601012,1723312240848,-153.0,0.00019733,2]
[334601013,1723312240858,-153.0,0.00019733,2]
[334601015,1723312240867,-153.0,0.00019733,2]
[334601017,1723312240876,-434.9,0.00019779,2]
[334601018,1723312240886,-157.425964,0.00019886,2]
[334601019,1723312240895,-170.767705,0.00019886,2]
[334601020,1723312240910,-165.056255,0.00019886,2]
[334601021,1723312240920,-153.172827,0.00019886,2]
[334601022,1723312240929,-164.789857,0.00019886,2]
[334601023,1723312240938,-153.172827,0.00019886,2]
[334601024,1723312240948,-212.980932,0.00019886,2]
[334601025,1723312240957,-1298.53285403,0.000199,2]
[334601026,1723312240967,-434.9,0.00019911,2]